fUSD/lending_fUSD_20251130
["ID","MTS","AMOUNT","RATE_DAILY","PERIOD"]
[395159752,1764491913908,-191.85435428,0.00012676,2]
[395159753,1764491913926,-273.50480766,0.00012676,2]
[395159754,1764491913947,-10000.01,0.00012676,2]
[395159756,1764491953407,-1106.3053,0.00012576,2]
[395159757,1764491953430,-150.0,0.00012675,2]
[395159758,1764491953455,-21493.6947,0.00012676,2]
[395159760,1764492002501,300.0,0.00012675,2]
[395159761,1764492002551,1200.0,0.00012675,2]
[395159762,1764492002706,300.0,0.00012675,2]
[395159765,1764492008243,200.0,0.00012676,2]
[395159766,1764492015593,8000.01,0.00012576,2]
[395159774,1764492108893,-300.0,0.00012575,2]
[395159775,1764492108922,-1221.74426616,0.00012576,2]
[395159776,1764492117209,-6956.52146768,0.00012576,2]
[395159777,1764492154608,-150.0,0.00012575,2]
[395159778,1764492154636,-248.89594793,0.00012576,2]
[395159779,1764492154664,-533.88194831,0.00012576,2]
[395159780,1764492154746,-8134.45420752,0.00012576,2]
[395159781,1764492158516,-10000.01,0.00012576,2]
[395159798,1764492279479,-250.0,0.00012576,2]
[395159799,1764492279516,-9500.01,0.00012576,2]
[395159800,1764492279706,-124.73021089,0.00012576,2]
[395159801,1764492279740,-1442.15605342,0.00012576,2]
[395159802,1764492279775,-6866.23747138,0.00012576,2]
[395159803,1764492279830,-651.5553,0.00012576,2]
[395159804,1764492279860,-2949.634,0.00012576,2]
[395159805,1764492279914,-2797.6314,0.00012576,2]
[395159808,1764492291949,-1930.308,0.00012576,2]
[395159809,1764492291977,-2500.0,0.00012576,2]
[395159810,1764492292005,-151.0,0.00012669,2]
[395159811,1764492292032,-151.0,0.00012669,2]
[395159812,1764492292060,-151.0,0.00012669,2]
[395159813,1764492292088,-82.394,0.00012669,2]
[395159814,1764492292174,-68.606,0.00012669,2]
[395159815,1764492292203,-151.0,0.00012669,2]
[395159816,1764492292230,-151.0,0.00012669,2]
[395159817,1764492292261,-151.0,0.00012669,2]
[395159818,1764492292287,-151.0,0.00012669,2]
[395159819,1764492292315,-151.0,0.00012669,2]
[395159820,1764492292342,-190.7567282,0.00012669,2]
[395159821,1764492292371,-500.0,0.00012669,2]
[395159822,1764492292400,-500.0,0.00012669,2]
[395159823,1764492292430,-194.25158579,0.00012669,2]
[395159824,1764492292459,-564.39360719,0.00012669,2]
[395159825,1764492292487,-200.0,0.00012669,2]
[395159828,1764492311435,-150.0,0.00012675,2]
[395159836,1764492327656,442.329,0.00012576,2]
[395159839,1764492340123,499.99999999,0.00012675,2]
[395159841,1764492349570,-294.77285261,0.00012676,2]
[395159842,1764492351613,-324.44683813,0.00012676,2]
[395159843,1764492353788,-299.36204804,0.00012676,2]
[395159845,1764492355407,-394.41304336,0.00012676,2]
[395159846,1764492358331,593.04645136,0.00012675,2]
[395159847,1764492358643,-500.0,0.00012676,2]
[395159848,1764492361195,300.0,0.00012675,2]
[395159850,1764492368278,500.0,0.00012675,2]
[395159851,1764492370355,501.07641119,0.00012675,2]
[395159853,1764492374568,1000.0,0.00012576,2]
[395159854,1764492376552,584.34,6.482e-05,2]
[395159855,1764492376756,584.34,6.823e-05,2]
[395159856,1764492376965,584.34,7.164e-05,2]
[395159857,1764492377186,584.34,7.505e-05,2]
[395159858,1764492377404,584.34,7.846e-05,2]
[395159859,1764492377603,584.34,8.187e-05,2]
[395159860,1764492377977,584.34,8.529e-05,2]
[395159861,1764492378172,584.34,8.87e-05,2]
[395159862,1764492378366,584.34,9.211e-05,2]
[395159863,1764492378573,584.34,9.552e-05,2]
[395159864,1764492378761,20.15813746,9.893e-05,2]
[395159865,1764492378786,564.18186254,9.893e-05,2]
[395159866,1764492379079,500.0,0.00012675,2]
[395159867,1764492379160,584.34,0.00010234,2]
[395159868,1764492379371,584.34,0.00010575,2]
[395159869,1764492379564,584.34,0.00010917,2]
[395159870,1764492379983,584.34,0.00011258,2]
[395159871,1764492380032,-184.82968071,0.00012676,2]
[395159872,1764492380197,584.34,0.00011599,2]
[395159874,1764492381728,584.34,0.0001194,2]
[395159875,1764492381793,584.34,0.00012281,2]
[395159876,1764492381858,584.34,0.00012622,2]
[395159884,1764492395836,500.0,0.00012675,2]
[395159885,1764492395877,500.0,0.00012675,2]
[395159886,1764492395918,500.0,0.00012675,2]
[395159887,1764492395958,500.0,0.00012675,2]
[395159888,1764492396012,500.0,0.00012675,2]
[395159889,1764492396055,500.0,0.00012675,2]
[395159890,1764492396101,500.0,0.00012675,2]
[395159891,1764492396145,500.0,0.00012675,2]
[395159892,1764492396183,197.07660744,0.00012675,2]
[395159893,1764492396231,64.03153002,0.00012675,2]
[395159894,1764492396258,435.96846998,0.00012675,2]
[395159895,1764492396300,500.0,0.00012675,2]
[395159896,1764492396338,500.0,0.00012675,2]
[395159898,1764492397232,249.99144755,0.00012675,2]
[395159901,1764492402064,8314.05008247,0.00012576,2]
[395159902,1764492402087,1381.87262542,0.00012576,2]
[395159906,1764492405301,462.1884,0.00012576,2]
[395159908,1764492410024,500.0,0.00012675,2]
[395159909,1764492410080,500.0,0.00012675,2]
[395159910,1764492410136,500.0,0.00012675,2]
[395159911,1764492410241,500.0,0.00012675,2]
[395159912,1764492410297,500.0,0.00012675,2]
[395159913,1764492410348,200.0,0.00012675,2]
[395159914,1764492411521,5455.94897458,0.00012576,2]
[395159915,1764492411544,10000.01,0.00012576,2]
[395159916,1764492411577,2647.99102542,0.00012576,2]
[395159922,1764492417575,2500.0,0.00012576,2]
[395159933,1764492430801,-302.51412457,0.00012576,2]
[395159934,1764492430832,-151.0,0.00012669,2]
[395159935,1764492431221,151.0,0.00012669,2]
[395159936,1764492431813,151.0,0.00012669,2]
[395159941,1764492432460,151.0,0.00012669,2]
[395159942,1764492433007,151.0,0.00012669,2]
[395159943,1764492433627,160.82386666,0.00012669,2]
[395159948,1764492439681,-305.26950056,0.00012676,2]
[395159949,1764492444608,-290.54606307,0.00012676,2]
[395159950,1764492452565,-205.74841421,0.00012669,2]
[395159951,1764492453097,-3998.6640087,0.00012676,2]
[395159952,1764492458558,-207.4,0.00012669,2]
[395159954,1764492468935,-1877.54045393,0.00012676,2]
[395159955,1764492473716,1200.0,0.00012675,2]
[395159956,1764492481250,300.0,0.00012675,2]
[395159957,1764492481900,150.0,0.00012675,2]
[395159963,1764492541414,300.0,0.00012675,2]
[395159964,1764492552429,7635.21,0.00012576,2]
[395159965,1764492552455,10000.01,0.00012576,2]
[395159966,1764492552479,10000.01,0.00012576,2]
[395159967,1764492552501,10000.01,0.00012576,2]
[395159971,1764492620266,5523.0,0.000145,5]
[395159983,1764492632361,-24.5,0.00012575,2]
[395159984,1764492632372,-275.5,0.00012575,2]
[395159985,1764492632382,-1200.0,0.00012575,2]
[395159986,1764492632391,-2461.6100029,0.00012576,2]
[395159987,1764492632417,-57341.56262096,0.00012576,2]
[395159988,1764492632496,-11827.66336345,0.00012576,2]
[395159997,1764492638411,8006.63501566,0.00025,120]
[395159998,1764492638459,-558.76146359,0.00012576,2]
[395159999,1764492638470,-290.26344508,0.00012576,2]
[395160003,1764492640751,-1.7e-07,0.00012576,2]
[395160004,1764492640762,-837.4423797,0.00012576,2]
[395160005,1764492640776,-4574.1801,0.00012576,2]
[395160018,1764492647398,-6184.38720728,0.00012576,2]
[395160019,1764492652649,5523.0,0.000145,5]
[395160038,1764492764943,-4619.589,0.00012325,2]
[395160039,1764492764971,-281.943,0.00012325,2]
[395160040,1764492765784,-1600.0,0.00012344,2]
[395160041,1764492765813,-339.1768044,0.00012476,2]
[395160043,1764492770932,-6733.4023912,0.00012476,2]
[395160045,1764492774124,-3382.18502513,0.00012476,2]
[395160046,1764492774153,-150.0,0.00012575,2]
[395160047,1764492774186,-500.0,0.00012575,2]
[395160048,1764492774219,-500.0,0.00012575,2]
[395160049,1764492774249,-435.63994974,0.00012575,2]
[395160050,1764492774332,-64.36005026,0.00012575,2]
[395160051,1764492774453,-500.0,0.00012575,2]
[395160052,1764492774483,-619.50576961,0.00012575,2]
[395160053,1764492774510,-504.06362992,0.00012575,2]
[395160056,1764492781231,300.0,0.00012575,2]
[395160057,1764492784797,-828.28028163,0.00012576,2]
[395160059,1764492786978,-424.31960322,0.00012576,2]
[395160060,1764492788916,-300.0,0.00012576,2]
[395160072,1764492793328,-193.59002877,0.00012576,2]
[395160136,1764492796235,-255.92714014,0.00012576,2]
[395160137,1764492796279,6452.87120094,0.00012476,2]
[395160138,1764492796303,2273.45923617,0.00012476,2]
[395160163,1764492841578,300.0,0.00012575,2]
[395160164,1764492842166,150.0,0.00012575,2]
[395160165,1764492901188,300.0,0.00012575,2]
[395160166,1764492901224,1200.0,0.00012575,2]
[395160167,1764492963941,-281.76093126,0.00012576,2]
[395160168,1764492986760,296.77970385,0.00012476,2]
[395160169,1764492993956,-348.84401115,0.00012576,2]
[395160170,1764492996836,-505.2686431,0.00012576,2]
[395160171,1764492998772,-300.0,0.00012576,2]
[395160172,1764493003393,-553.28764392,0.00012576,2]
[395160173,1764493021929,300.0,0.00012575,2]
[395160174,1764493022248,150.0,0.00012575,2]
[395160175,1764493111765,4575.69,0.00012402,2]
[395160181,1764493190934,454.08105998,0.00012476,2]
[395160182,1764493190960,7559.32985056,0.00012476,2]
[395160183,1764493201170,300.0,0.00012575,2]
[395160184,1764493201560,1200.0,0.00012575,2]
[395160185,1764493202355,150.0,0.00012575,2]
[395160189,1764493256364,790.68014944,0.00012476,2]
[395160190,1764493256389,8313.34852523,0.00012476,2]
[395160191,1764493261190,300.0,0.00012575,2]
[395160193,1764493262672,151.0,0.00012576,2]
[395160194,1764493262827,151.0,0.00012576,2]
[395160195,1764493270249,259.68224086,0.00012476,2]
[395160196,1764493282860,306.68883536,0.00012476,2]
[395160197,1764493284456,518.29039855,0.00012575,2]
[395160198,1764493284496,10000.01,0.00012575,2]
[395160199,1764493284537,6972.4068119,0.00012575,2]
[395160200,1764493293000,3027.6031881,0.00012325,2]
[395160201,1764493293023,668.0678119,0.00012325,2]
[395160202,1764493293119,225.555,0.00012325,2]
[395160237,1764493383160,150.0,0.00012575,2]
[395160257,1764493433273,8956.3871881,0.00012435,2]
[395160258,1764493433294,10000.01,0.00012435,2]
[395160259,1764493433712,10000.01,0.00012435,2]
[395160260,1764493433735,10000.01,0.00012435,2]
[395160261,1764493433758,10000.01,0.00012435,2]
[395160262,1764493433779,10000.01,0.00012435,2]
[395160263,1764493433801,10000.01,0.00012435,2]
[395160264,1764493433822,10000.01,0.00012435,2]
[395160265,1764493433844,10000.01,0.00012435,2]
[395160266,1764493433865,10000.01,0.00012435,2]
[395160276,1764493454003,-4317.1328119,0.00012435,2]
[395160277,1764493454044,-300.0,0.00012575,2]
[395160284,1764493490963,765.7443762,0.00012537,2]
[395160285,1764493490985,10000.01,0.00012537,2]
[395160286,1764493491007,10000.01,0.00012537,2]
[395160287,1764493491030,1987.4656238,0.00012537,2]
[395160376,1764493501181,300.0,0.00012575,2]
[395160377,1764493501543,1200.0,0.00012575,2]
[395160435,1764493706746,-227.22196077,0.00012476,2]
[395160436,1764493706773,-250.0,0.00012526,2]
[395160437,1764493706800,-250.0,0.00012558,2]
[395160438,1764493706828,-300.0,0.00012575,2]
[395160439,1764493706854,-151.0,0.00012576,2]
[395160440,1764493706880,-151.0,0.00012576,2]
[395160499,1764493759588,-6335.49487752,0.00012576,2]
[395160513,1764493769274,-10000.01,0.00012576,2]
[395160540,1764493832246,-250.0,0.0001242,2]
[395160541,1764493832255,-1664.51512248,0.00012576,2]
[395160542,1764493832264,-337.16992201,0.00012581,2]
[395160543,1764493832275,-150.0,0.00012586,2]
[395160544,1764493832283,-300.0,0.00012586,2]
[395160545,1764493832293,-300.0,0.00012586,2]
[395160546,1764493832303,-1200.0,0.00012586,2]
[395160547,1764493832314,-300.0,0.00012586,2]
[395160548,1764493832323,-291.05619662,0.00012586,2]
[395160549,1764493832332,-8644.1748158,0.00012587,2]
[395160551,1764493832342,-30573.86544309,0.00012587,2]
[395160564,1764493845544,-151.0,0.00012581,2]
[395160565,1764493845555,-317.37725316,0.00012587,2]
[395160566,1764493845651,-869.29227437,0.00012587,2]
[395160567,1764493845707,-2811.28980391,0.00012587,2]
[395160568,1764493845761,-1338.67363608,0.00012587,2]
[395160569,1764493845774,-1169.3192,0.00012587,2]
[395160608,1764494075717,162.45,0.00019178,30]
[395160609,1764494141891,165.4,0.00012318,2]
[395160610,1764494155330,345.9,0.00025,120]
[395160611,1764494158198,150.0,0.00012318,2]
[395160612,1764494171350,4630.98,0.00012282,2]
[395160645,1764494497832,1500.0,0.00012214,2]
[395160652,1764494532736,-179.28100154,0.00012429,2]
[395160653,1764494532771,-300.0,0.00012529,2]
[395160654,1764494532800,-1200.0,0.00012529,2]
[395160655,1764494532830,-150.0,0.00012529,2]
[395160660,1764494541805,500.0,0.00012294,2]
[395160663,1764494547475,-158.7082682,0.00012587,2]
[395160664,1764494547508,-4006.99599,0.00012587,2]
[395160672,1764494628045,1658.02,0.00012271,2]
[395160686,1764494765210,324.39,0.00012203,2]
[395160694,1764494889660,-1071.22,0.000125,2]
[395160695,1764494889818,-10000.01,0.000125,2]
[395160696,1764494890099,-10000.01,0.000125,2]
[395160697,1764494890191,-10000.01,0.000125,2]
[395160698,1764494895069,-10000.01,0.000125,2]
[395160699,1764494895187,-10000.01,0.000125,2]
[395160700,1764494898981,-181.40564196,0.000125,2]
[395160701,1764494901764,-558.19147057,0.000125,2]
[395160702,1764494904449,-260.19658991,0.00012437,2]
[395160703,1764494906517,-296.55391083,0.00012437,2]
[395160705,1764494908645,-300.0,0.00012437,2]
[395160707,1764494910067,-451.5997428,0.00012437,2]
[395160708,1764494912688,-289.2812312,0.00012437,2]
[395160709,1764494914589,-441.49201326,0.00012437,2]
[395160710,1764494914620,-234.36879581,0.00012499,2]
[395160711,1764494914653,-500.0,0.00012499,2]
[395160712,1764494914687,-500.0,0.00012499,2]
[395160713,1764494914719,-500.0,0.00012499,2]
[395160714,1764494914749,-549.19344624,0.00012499,2]
[395160715,1764494914781,-500.0,0.00012499,2]
[395160716,1764494914814,-500.0,0.00012499,2]
[395160717,1764494914845,-500.0,0.00012499,2]
[395160718,1764494914876,-500.0,0.00012499,2]
[395160719,1764494914906,-49.90148938,0.00012499,2]
[395160721,1764494915160,-450.09851062,0.00012499,2]
[395160722,1764494915268,-500.0,0.000125,2]
[395160723,1764494917250,-578.62882631,0.000125,2]
[395160724,1764494918715,-200.7170109,0.000125,2]
[395160725,1764494921326,-538.05344782,0.000125,2]
[395160726,1764494923867,-302.0,0.000125,2]
[395160727,1764494924890,-215.92294338,0.000125,2]
[395160728,1764494925051,-10000.01,0.000125,2]
[395160729,1764494926413,-254.69291239,0.000125,2]
[395160730,1764494927881,-249.54801596,0.000125,2]
[395160731,1764494930490,-300.0,0.000125,2]
[395160733,1764494932653,-548.96763811,0.000125,2]
[395160734,1764494938844,458.00390684,0.00012169,2]
[395160735,1764494943403,163.03,6.024e-05,2]
[395160736,1764494943599,163.03,9.037e-05,2]
[395160737,1764494943782,163.03,0.00012049,2]
[395160738,1764494943903,-300.0,0.00012498,2]
[395160739,1764494943926,-108.38485125,0.00012499,2]
[395160743,1764494947586,-244.4596897,0.00012499,2]
[395160744,1764494947611,-255.5403103,0.00012499,2]
[395160787,1764494949103,-244.4596897,0.00012499,2]
[395160789,1764494949131,-48.97080069,0.00012499,2]
[395160791,1764494950656,-166.27919891,0.00012499,2]
[395160792,1764494953440,-284.7500004,0.00012499,2]
[395160793,1764494953466,-106.3281458,0.00012499,2]
[395160794,1764494957429,-393.6718542,0.00012499,2]
[395160795,1764494957456,-17.10444832,0.00012499,2]
[395160796,1764494958616,-238.36710413,0.00012499,2]
[395160798,1764494961466,-244.52844755,0.00012499,2]
[395160799,1764494961490,-149.00542838,0.00012499,2]
[395160800,1764494963483,-198.57145067,0.00012499,2]
[395160801,1764494965143,-152.42312095,0.00012499,2]
[395160802,1764494965167,-151.51245915,0.00012499,2]
[395160804,1764494969113,-348.48754085,0.00012499,2]
[395160805,1764494969140,-1.51245915,0.00012499,2]
[395160806,1764494970702,-300.0,0.00012499,2]
[395160829,1764494972149,-198.48754085,0.00012499,2]
[395160830,1764494972173,-0.40418395,0.00012499,2]
[395160831,1764494972525,999.0,0.00012091,3]
[395160832,1764494976910,-499.59581605,0.00012499,2]
[395160833,1764494976940,-168.34169307,0.00012499,2]
[395160834,1764494980616,-79.14548944,0.00012499,2]
[395160835,1764494980649,-220.85451056,0.00012499,2]
[395160836,1764494982146,-163.73263199,0.00012499,2]
[395160838,1764494984934,-207.22068025,0.00012499,2]
[395160839,1764494984955,-65.74317975,0.000125,2]
[395160840,1764494985415,-8053.91609316,0.000125,2]
[395160841,1764494985794,-10000.01,0.000125,2]
[395160842,1764494985962,-10000.01,0.000125,2]
[395160843,1764494986141,-10000.01,0.000125,2]
[395160844,1764494986232,-10000.01,0.000125,2]
[395160845,1764494986362,-10000.01,0.000125,2]
[395160846,1764494986472,-10000.01,0.000125,2]
[395160847,1764494986525,-385.59247409,0.000125,2]
[395160848,1764494986565,-10000.01,0.000125,2]
[395160849,1764494986712,-583.71564634,0.00012499,2]
[395160850,1764494986745,-8832.57870732,0.000125,2]
[395160851,1764494989696,-181.15641038,0.000125,2]
[395160852,1764494991557,-10000.01,0.000125,2]
[395160853,1764494991587,-10000.01,0.000125,2]
[395160854,1764494991720,-212.0,0.000125,2]
[395160855,1764494993206,-349.68414304,0.000125,2]
[395160856,1764494995900,-239.84461896,0.000125,2]
[395160857,1764494998033,-10000.01,0.000125,2]
[395160858,1764494998059,-228.56036305,0.000125,2]
[395160859,1764494998236,-10000.01,0.000125,2]
[395160860,1764494998347,-10000.01,0.000125,2]
[395160861,1764494999620,-198.18696423,0.000125,2]
[395160862,1764495002980,-221.97219332,0.00012499,2]
[395160863,1764495004045,-78.02780668,0.00012499,2]
[395160864,1764495004074,-1200.0,0.00012499,2]
[395160865,1764495004102,-300.0,0.00012499,2]
[395160866,1764495004130,-219.0,0.00012499,2]
[395160867,1764495004159,-150.0,0.00012499,2]
[395160868,1764495004187,-889.29304005,0.00012499,2]
[395160869,1764495004283,-4327.36830654,0.00012499,2]
[395160870,1764495004338,-4327.36830654,0.000125,2]
[395160871,1764495004360,-1345.27338692,0.000125,2]
[395160872,1764495005798,-269.71146789,0.000125,2]
[395160873,1764495007446,-500.0,0.000125,2]
[395160874,1764495007512,-10000.01,0.000125,2]
[395160875,1764495007620,-10000.01,0.000125,2]
[395160876,1764495007725,-10000.01,0.000125,2]
[395160877,1764495010111,-403.50816133,0.000125,2]
[395160878,1764495011649,-280.44853211,0.000125,2]
[395160879,1764495014632,-180.12476308,0.000125,2]
[395160880,1764495015617,-155.51444591,0.000125,2]
[395160881,1764495019724,-277.7958107,0.000125,2]
[395160882,1764495021527,-318.60669344,0.000125,2]
[395160883,1764495026363,-187.42409288,0.000125,2]
[395160884,1764495028633,-159.9155177,0.000125,2]
[395160885,1764495030240,-177.90352714,0.000125,2]
[395160906,1764495031648,-11841.90018368,0.000125,2]
[395160908,1764495031658,-500.0,0.00012574,2]
[395160910,1764495031668,-3339.16332,0.00012587,2]
[395160912,1764495031678,-250.0,0.00012628,2]
[395160913,1764495031690,-1000.0,0.00012681,2]
[395160914,1764495031702,-2200.5979,0.0001273,2]
[395160915,1764495031715,-2412.90231085,0.00012731,2]
[395160916,1764495031746,-37587.13768915,0.00012731,2]
[395160917,1764495031755,-1000.0,0.00012731,2]
[395160918,1764495031767,-2500.0,0.00012731,2]
[395160919,1764495031777,-2990.139,0.00012731,2]
[395160920,1764495031786,-180.444,0.00012731,2]
[395160921,1764495031797,-9647.64100898,0.00012781,2]
[395160922,1764495031807,-328.64961096,0.00012781,2]
[395160923,1764495031818,-431.71825123,0.00012781,2]
[395160924,1764495031828,-1852.42,0.00012782,2]
[395160925,1764495031841,-8664.99596186,0.00012784,2]
[395160926,1764495031856,-150.0,0.00012791,2]
[395160928,1764495031866,-151.0,0.00012828,2]
[395160930,1764495031876,-151.0,0.00012828,2]
[395160932,1764495031892,-1440.57766234,0.0001283,2]
[395160934,1764495031901,-150.99,0.0001283,2]
[395160935,1764495031911,-9999.99,0.0001283,2]
[395160937,1764495031921,-9999.99,0.0001283,2]
[395160939,1764495031931,-1794.98,0.0001283,2]
[395160940,1764495031940,-150.99,0.0001283,2]
[395160941,1764495031951,-999.99,0.0001283,2]
[395160942,1764495031960,-1428.12,0.0001283,2]
[395160943,1764495031969,-3511.55,0.0001283,2]
[395160944,1764495031979,-205.94,0.00012831,2]
[395160945,1764495031989,-1427.10286509,0.00012831,2]
[395160946,1764495032029,-1932.135623,0.00012831,2]
[395160947,1764495032041,-25595.22780297,0.00012831,2]
[395160948,1764495032053,-4541.1999,0.00012831,2]
[395160949,1764495032066,-290.50101192,0.00012831,2]
[395160953,1764495037736,-55056.76162075,0.00012831,2]
[395160954,1764495037747,-15808.16823742,0.00012831,2]
[395160966,1764495039662,-13365.42815252,0.00012831,2]
[395160995,1764495040306,-1.7e-07,0.00012831,2]
[395160996,1764495040342,-1169.60219242,0.00012831,2]
[395160997,1764495040364,-418.68771899,0.00012831,2]
[395160998,1764495040399,-8102.14124179,0.00012831,2]
[395161006,1764495042741,-723.68779942,0.00012831,2]
[395161007,1764495042868,-109808.65408894,0.00012831,2]
[395161008,1764495042917,-157.63,0.00012831,2]
[395161009,1764495042962,-577.02655761,0.00012831,2]
[395161010,1764495042973,-1097.0,0.00012831,2]
[395161064,1764495045720,-303.8,0.00012831,2]
[395161065,1764495045775,-1691.43396425,0.00012831,2]
[395161066,1764495045787,-1115.8401823,0.00012831,2]
[395161067,1764495045799,-516817.97104044,0.00012831,2]
[395161068,1764495045808,-324.39,0.00012881,2]
[395161069,1764495045818,-11566.0604,0.0001292,2]
[395161070,1764495045827,-1000.0,0.0001292,2]
[395161071,1764495045837,-162.95,0.00012931,2]
[395161072,1764495045846,-166.66,0.00012958,2]
[395161073,1764495045856,-584.34,0.00012963,2]
[395161074,1764495045865,-200.0,0.00013013,2]
[395161075,1764495045875,-827.0,0.00013073,2]
[395161076,1764495045884,-9647.64100894,0.00013239,2]
[395161077,1764495045894,-8664.99596182,0.00013241,2]
[395161078,1764495045903,-328.64961095,0.00013369,2]
[395161079,1764495045913,-166.66,0.00013386,2]
[395161080,1764495045922,-1200.57319567,0.00013459,2]
[395161081,1764495045931,-151.0,0.00013477,2]
[395161082,1764495045941,-100187.11639982,0.0001348,2]
[395161083,1764495045950,-324.39,0.00013559,2]
[395161084,1764495045959,-255.0,0.00013599,2]
[395161085,1764495045971,-431.71825123,0.00013675,2]
[395161086,1764495045980,-9647.64100894,0.00013696,2]
[395161087,1764495045990,-500.0,0.00013698,2]
[395161088,1764495045999,-500.0,0.00013698,2]
[395161089,1764495046010,-1128.5220205,0.00013698,3]
[395161090,1764495046020,-166.66,0.00013699,2]
[395161091,1764495046033,-200.0,0.00013699,2]
[395161092,1764495046042,-953.36,0.00013699,2]
[395161093,1764495046051,-10571.07,0.00013699,2]
[395161094,1764495046063,-600.0,0.00013699,2]
[395161095,1764495046073,-8664.99596182,0.00013699,2]
[395161096,1764495046083,-500.0,0.00013699,2]
[395161097,1764495046092,-500.0,0.00013699,2]
[395161098,1764495046103,-278.65224955,0.00013699,2]
[395161099,1764495046112,-500.0,0.00013699,2]
[395161100,1764495046122,-500.0,0.00013699,2]
[395161101,1764495046131,-500.0,0.00013699,2]
[395161102,1764495046142,-540.42380949,0.00013699,2]
[395161105,1764495046534,-500.0,0.00013699,2]
[395161106,1764495046544,-500.0,0.00013699,2]
[395161107,1764495046554,-500.0,0.00013699,2]
[395161108,1764495046563,-420.0,0.00013714,2]
[395161109,1764495046572,-420.0,0.00013714,2]
[395161110,1764495046581,-250.0,0.00013748,2]
[395161111,1764495046590,-195.0,0.00013749,2]
[395161112,1764495046599,-1680.0,0.00013749,2]
[395161113,1764495046609,-195.0,0.0001375,2]
[395161114,1764495046618,-518.10982869,0.00013798,2]
[395161115,1764495046627,-451.39,0.0001381,3]
[395161116,1764495046637,-2751.0,0.0001381,2]
[395161117,1764495046647,-3961.89673655,0.0001381,2]
[395161118,1764495046671,-401.94530937,0.0001381,2]
[395161130,1764495068011,164.404863,7.945e-05,2]
[395161136,1764495083605,-194.50443045,0.00012829,2]
[395161137,1764495083636,-552.99887718,0.00012829,2]
[395161138,1764495083918,-8340.59852174,0.00013001,2]
[395161139,1764495083932,-10000.01,0.00013001,2]
[395161141,1764495119937,-1000.0,0.00012731,2]
[395161142,1764495119970,-8000.01,0.00012731,2]
[395161143,1764495120156,-10000.01,0.00012731,2]
[395161149,1764495133321,-10000.01,0.00012731,2]
[395161150,1764495134063,-10000.01,0.00012731,2]
[395161153,1764495140523,-10000.01,0.00012731,2]
[395161155,1764495140920,-10000.01,0.00012731,2]
[395161156,1764495141067,-666.10711758,0.00012731,2]
[395161157,1764495141146,-10000.01,0.00012731,2]
[395161161,1764495149328,-10000.01,0.00012731,2]
[395161165,1764495153004,-2876.54336362,0.00012631,2]
[395161166,1764495153027,-4246.92327276,0.00012631,2]
[395161167,1764495153126,-10000.01,0.00012731,2]
[395161168,1764495153253,-10000.01,0.00012731,2]
[395161172,1764495161174,-483.40273617,0.0001273,2]
[395161173,1764495161235,-9033.20452766,0.00012731,2]
[395161174,1764495161379,-10000.01,0.00012731,2]
[395161176,1764495205131,-413.09561967,0.00012631,2]
[395161178,1764495264902,10412.85,0.00025,120]
[395161180,1764495288780,246.48720823,0.00012631,2]
[395161181,1764495291432,164.40486399,0.0001263,2]
[395161187,1764495322800,8176.4618899,0.00012631,2]
[395161197,1764495394481,1412.65603788,0.000125,2]
[395161198,1764495394512,10000.01,0.000125,2]